fUSD/lending_fUSD_20240205
["ID","MTS","AMOUNT","RATE_DAILY","PERIOD"]
[313291100,1707095455133,-535.89150548,0.00038356,2]
[313291101,1707095455143,-500.0,0.00038356,2]
[313291102,1707095455153,-500.0,0.00038356,2]
[313291103,1707095455162,-500.0,0.00038356,2]
[313291104,1707095455171,-500.0,0.00038356,2]
[313291105,1707095455180,-500.0,0.00038356,2]
[313291106,1707095455194,-500.0,0.00038356,2]
[313291107,1707095455212,-544.92405214,0.00038356,2]
[313291108,1707095455224,-224.04487956,0.00038356,2]
[313291109,1707095455234,-500.0,0.00038356,2]
[313291110,1707095455243,-500.0,0.00038356,2]
[313291111,1707095455252,-533.38363908,0.00038356,2]
[313291112,1707095455263,-278.41953028,0.00038356,2]
[313291113,1707095455272,-500.0,0.00038356,2]
[313291114,1707095455281,-500.0,0.00038356,2]
[313291115,1707095455290,-550.41021549,0.00038356,2]
[313291116,1707095455299,-500.0,0.00038356,2]
[313291117,1707095455308,-500.0,0.00038356,2]
[313291118,1707095455318,-500.0,0.00038356,2]
[313291119,1707095455329,-500.0,0.00038356,2]
[313291120,1707095455339,-150.0,0.00038356,2]
[313291121,1707095455348,-1821.98,0.0003842,5]
[313291122,1707095455358,-171.0205,0.00038598,17]
[313291123,1707095455369,-1784.22,0.00038601,5]
[313291124,1707095455379,-543.53435668,0.00038689,2]
[313291125,1707095455389,-171.0205,0.00038698,17]
[313291126,1707095455399,-171.0205,0.00038798,17]
[313291127,1707095455408,-21428.89231841,0.000388,4]
[313291128,1707095455419,-1831.23,0.00038875,5]
[313291129,1707095455428,-1391.85876226,0.0003888,2]
[313291130,1707095455441,-1391.85876225,0.0003888,2]
[313291131,1707095455450,-1391.85876225,0.0003888,2]
[313291132,1707095455460,-1391.85876225,0.0003888,2]
[313291133,1707095455470,-1391.85876225,0.0003888,2]
[313291134,1707095455479,-1391.85876225,0.0003888,2]
[313291135,1707095455489,-1391.85876225,0.0003888,2]
[313291136,1707095455498,-171.0205,0.00038898,17]
[313291137,1707095455507,-4022.05534833,0.000389,15]
[313291138,1707095455517,-171.0205,0.00038948,18]
[313291139,1707095455526,-282.99585299,0.0003898,2]
[313291140,1707095455536,-155.0,0.00038999,4]
[313291141,1707095455545,-209.38088662,0.00038999,4]
[313291142,1707095455555,-5637.40464828,0.00038999,2]
[313291143,1707095455564,-1970.77972657,0.00038999,2]
[313291144,1707095455573,-2009.29,0.00039,2]
[313291145,1707095455582,-1433.61374358,0.00039,2]
[313291146,1707095455591,-2000.0,0.00039,60]
[313291147,1707095455600,-1600.0,0.00039,3]
[313291148,1707095455609,-1919.5985451,0.00039021,2]
[313291149,1707095455619,-171.0205,0.00039048,15]
[313291150,1707095455628,-1836.57,0.00039072,5]
[313291151,1707095455637,-13118.75885045,0.00039089,4]
[313291152,1707095455646,-171.0205,0.00039098,16]
[313291153,1707095455655,-284.26197,0.000391,14]
[313291154,1707095455665,-171.0205,0.00039148,15]
[313291155,1707095455675,-271.78539016,0.00039177,2]
[313291156,1707095455687,-150.0,0.00039177,2]
[313291157,1707095455697,-601.92210255,0.00039178,15]
[313291158,1707095455706,-1001.99066876,0.00039178,2]
[313291159,1707095455716,-462.37281719,0.00039178,2]
[313291160,1707095455726,-500.0,0.00039178,2]
[313291161,1707095455734,-527.65058143,0.00039178,2]
[313291162,1707095455744,-500.0,0.00039178,2]
[313291163,1707095455753,-504.45153198,0.00039178,2]
[313291164,1707095455763,-500.0,0.00039178,2]
[313291165,1707095455772,-514.01470483,0.00039178,2]
[313291166,1707095455781,-1031.1,0.00039178,7]
[313291167,1707095455790,-500.0,0.00039178,2]
[313291168,1707095455799,-524.81725134,0.00039178,2]
[313291169,1707095455808,-559.76397721,0.00039178,2]
[313291170,1707095455818,-265.97627234,0.00039178,2]
[313291171,1707095455827,-500.0,0.00039178,2]
[313291172,1707095455836,-500.0,0.00039178,2]
[313291173,1707095455846,-253.55862277,0.00039178,2]
[313291174,1707095455855,-500.0,0.00039178,2]
[313291175,1707095455864,-535.36615329,0.00039178,2]
[313291176,1707095455873,-500.0,0.00039178,2]
[313291177,1707095455882,-299.95150765,0.00039178,2]
[313291178,1707095455892,-500.0,0.00039178,2]
[313291179,1707095455901,-205.32555962,0.00039178,2]
[313291180,1707095455910,-500.0,0.00039178,2]
[313291181,1707095455919,-547.80514869,0.00039178,2]
[313291182,1707095455928,-500.0,0.00039178,2]
[313291183,1707095455940,-500.0,0.00039178,2]
[313291184,1707095455950,-500.0,0.00039178,2]
[313291185,1707095455959,-327.29017838,0.00039178,2]
[313291186,1707095455968,-500.0,0.00039178,2]
[313291187,1707095455977,-326.56372703,0.00039178,2]
[313291188,1707095455986,-553.67,0.00039178,2]
[313291189,1707095455996,-500.0,0.00039178,2]
[313291190,1707095456005,-500.0,0.00039178,2]
[313291191,1707095456014,-500.0,0.00039178,2]
[313291192,1707095456023,-500.0,0.00039178,2]
[313291193,1707095456032,-500.0,0.00039178,2]
[313291194,1707095456042,-500.0,0.00039178,2]
[313291195,1707095456051,-500.0,0.00039178,2]
[313291196,1707095456061,-500.0,0.00039178,2]
[313291197,1707095456072,-500.0,0.00039178,2]
[313291198,1707095456085,-500.0,0.00039178,2]
[313291199,1707095456095,-1044.03,0.00039178,2]
[313291200,1707095456105,-500.0,0.00039178,2]
[313291201,1707095456115,-500.0,0.00039178,2]
[313291202,1707095456125,-500.0,0.00039178,2]
[313291203,1707095456134,-500.0,0.00039178,2]
[313291204,1707095456144,-500.0,0.00039178,2]
[313291205,1707095456155,-500.0,0.00039178,2]
[313291206,1707095456165,-500.0,0.00039178,2]
[313291207,1707095456175,-169.19812067,0.00039178,2]
[313291208,1707095456188,-500.0,0.00039178,2]
[313291209,1707095456198,-500.0,0.00039178,2]
[313291210,1707095456208,-500.0,0.00039178,2]
[313291211,1707095456218,-500.0,0.00039178,2]
[313291212,1707095456228,-500.0,0.00039178,2]
[313291213,1707095456237,-500.0,0.00039178,2]
[313291214,1707095456247,-500.0,0.00039178,2]
[313291215,1707095456257,-500.0,0.00039178,2]
[313291216,1707095456266,-500.0,0.00039178,2]
[313291217,1707095456275,-500.0,0.00039178,2]
[313291218,1707095456285,-532.09513271,0.00039178,2]
[313291219,1707095456295,-500.0,0.00039178,2]
[313291220,1707095456304,-1000.0,0.00039178,2]
[313291221,1707095456314,-500.0,0.00039178,2]
[313291222,1707095456323,-500.0,0.00039178,2]
[313291223,1707095456333,-500.0,0.00039178,2]
[313291224,1707095456342,-510.68970651,0.00039178,2]
[313291225,1707095456352,-566.0343947,0.00039178,2]
[313291226,1707095456361,-500.0,0.00039178,2]
[313291227,1707095456371,-549.34820792,0.00039178,2]
[313291228,1707095456380,-500.0,0.00039178,2]
[313291229,1707095456390,-530.05268342,0.00039178,2]
[313291230,1707095456399,-500.0,0.00039178,2]
[313291231,1707095456408,-500.0,0.00039178,2]
[313291232,1707095456418,-500.0,0.00039178,2]
[313291233,1707095456427,-608.81,0.00039178,2]
[313291234,1707095456441,-500.0,0.00039178,2]
[313291235,1707095456450,-500.0,0.00039178,2]
[313291236,1707095456460,-500.0,0.00039178,2]
[313291237,1707095456469,-500.0,0.00039178,2]
[313291238,1707095456479,-551.72089403,0.00039178,2]
[313291239,1707095456489,-500.0,0.00039178,2]
[313291240,1707095456499,-187.75,0.00039178,2]
[313291241,1707095456508,-911.94,0.00039178,7]
[313291242,1707095456518,-500.0,0.00039178,2]
[313291243,1707095456527,-565.33188697,0.00039178,2]
[313291244,1707095456536,-500.0,0.00039178,2]
[313291245,1707095456546,-153.08339072,0.00039178,2]
[313291246,1707095456555,-532.01092946,0.00039178,2]
[313291247,1707095456565,-500.0,0.00039178,2]
[313291248,1707095456574,-500.0,0.00039178,2]
[313291249,1707095456583,-537.17737706,0.00039178,2]
[313291250,1707095456593,-500.0,0.00039178,2]
[313291251,1707095456603,-493.4,0.00039178,2]
[313291252,1707095456612,-500.0,0.00039178,2]
[313291253,1707095456621,-500.0,0.00039178,2]
[313291254,1707095456630,-566.02646467,0.00039178,2]
[313291255,1707095456640,-410.49,0.00039178,2]
[313291256,1707095456649,-500.0,0.00039178,2]
[313291257,1707095456659,-500.0,0.00039178,2]
[313291258,1707095456668,-500.0,0.00039178,2]
[313291259,1707095456677,-500.0,0.00039178,2]
[313291260,1707095456689,-390.56738151,0.00039178,2]
[313291261,1707095456697,-500.0,0.00039178,2]
[313291262,1707095456707,-1072.12,0.00039178,2]
[313291263,1707095456716,-180.00632062,0.00039178,2]
[313291264,1707095456725,-570.02442741,0.00039178,2]
[313291265,1707095456734,-500.0,0.00039178,2]
[313291266,1707095456743,-500.0,0.00039178,2]
[313291267,1707095456752,-487.00482623,0.00039178,2]
[313291268,1707095456761,-509.35786435,0.00039178,2]
[313291269,1707095456770,-542.58165007,0.00039178,2]
[313291270,1707095456779,-500.0,0.00039178,2]
[313291271,1707095456788,-578.15090235,0.00039178,2]
[313291272,1707095456797,-500.0,0.00039178,2]
[313291273,1707095456806,-585.3285211,0.00039178,2]
[313291274,1707095456916,-500.0,0.00039178,2]
[313291275,1707095456925,-170.13589652,0.00039178,2]
[313291276,1707095456936,-500.0,0.00039178,2]
[313291277,1707095456945,-558.14275232,0.00039178,2]
[313291278,1707095456954,-500.0,0.00039178,2]
[313291279,1707095456963,-571.14280726,0.00039178,2]
[313291280,1707095456972,-500.0,0.00039178,2]
[313291281,1707095456981,-500.0,0.00039178,2]
[313291282,1707095456990,-150.0,0.00039178,2]
[313291283,1707095456999,-500.0,0.00039178,2]
[313291284,1707095457008,-500.0,0.00039178,2]
[313291285,1707095457017,-947.41,0.00039178,20]
[313291286,1707095457026,-500.0,0.00039178,2]
[313291287,1707095457035,-500.0,0.00039178,2]
[313291288,1707095457044,-500.0,0.00039178,2]
[313291289,1707095457053,-606.62874401,0.00039178,2]
[313291290,1707095457063,-374.85012068,0.00039178,2]
[313291291,1707095457074,-577.19016731,0.00039178,2]
[313291292,1707095457085,-500.0,0.00039178,2]
[313291293,1707095457094,-500.0,0.00039178,2]
[313291294,1707095457103,-560.42713062,0.00039178,2]
[313291295,1707095457114,-500.0,0.00039178,2]
[313291296,1707095457123,-531.46962805,0.00039178,2]
[313291297,1707095457133,-500.0,0.00039178,2]
[313291298,1707095457148,-362.98456966,0.00039178,2]
[313291299,1707095457162,-517.0769479,0.00039178,2]
[313291300,1707095457172,-500.0,0.00039178,2]
[313291301,1707095457182,-374.58139313,0.00039178,2]
[313291302,1707095457194,-202.11,0.00039178,2]
[313291303,1707095457203,-500.0,0.00039178,2]
[313291304,1707095457213,-500.0,0.00039178,2]
[313291305,1707095457222,-604.6581548,0.00039178,2]
[313291306,1707095457233,-500.0,0.00039178,2]
[313291307,1707095457243,-500.0,0.00039178,2]
[313291308,1707095457252,-645.15,0.00039178,2]
[313291309,1707095457262,-1039.15,0.00039178,2]
[313291310,1707095457272,-322.89921489,0.00039178,2]
[313291311,1707095457281,-500.0,0.00039178,2]
[313291312,1707095457291,-194.24881784,0.00039178,2]
[313291313,1707095457301,-550.82737192,0.00039178,2]
[313291314,1707095457310,-258.78394827,0.00039178,2]
[313291315,1707095457320,-500.0,0.00039178,2]
[313291316,1707095457329,-500.0,0.00039178,2]
[313291317,1707095457339,-318.97853727,0.00039178,2]
[313291318,1707095457348,-358.63287,0.00039178,2]
[313291319,1707095457359,-500.0,0.00039178,2]
[313291320,1707095457368,-533.23886879,0.00039178,2]
[313291321,1707095457378,-274.51761551,0.00039178,2]
[313291322,1707095457388,-500.0,0.00039178,2]
[313291323,1707095457398,-522.59738832,0.00039178,2]
[313291324,1707095457407,-500.0,0.00039178,2]
[313291325,1707095457417,-500.0,0.00039178,10]
[313291326,1707095457428,-500.0,0.00039178,2]
[313291327,1707095457439,-219.71500407,0.00039178,2]
[313291328,1707095457450,-225.22603931,0.00039178,2]
[313291329,1707095457460,-500.0,0.00039178,2]
[313291330,1707095457470,-500.0,0.00039178,2]
[313291331,1707095457480,-187.27,0.00039178,2]
[313291332,1707095457489,-198.59199358,0.00039178,2]
[313291333,1707095457499,-506.02529316,0.00039178,2]
[313291334,1707095457509,-612.0057739,0.00039178,2]
[313291335,1707095457518,-500.0,0.00039178,2]
[313291336,1707095457528,-155.77938104,0.00039178,2]
[313291337,1707095457538,-500.33992718,0.00039178,2]
[313291338,1707095457547,-605.24414148,0.00039178,2]
[313291339,1707095457557,-500.0,0.00039178,2]
[313291340,1707095457567,-500.0,0.00039178,2]
[313291341,1707095457577,-521.9704285,0.00039178,2]
[313291342,1707095457587,-500.0,0.00039178,2]
[313291343,1707095457597,-491.16418258,0.00039178,2]
[313291344,1707095457606,-568.97686044,0.00039178,2]
[313291345,1707095457616,-563.31929193,0.00039178,2]
[313291346,1707095457625,-500.0,0.00039178,2]
[313291347,1707095457635,-500.0,0.00039178,2]
[313291348,1707095457645,-1171.17,0.00039178,2]
[313291349,1707095457655,-500.0,0.00039178,2]
[313291350,1707095457665,-500.0,0.00039178,2]
[313291351,1707095457675,-554.47530321,0.00039178,2]
[313291352,1707095457688,-883.87,0.00039178,2]
[313291353,1707095457697,-500.0,0.00039178,2]
[313291354,1707095457707,-500.0,0.00039178,2]
[313291355,1707095457717,-828.79,0.00039178,2]
[313291356,1707095457727,-500.0,0.00039178,2]
[313291357,1707095457737,-500.0,0.00039178,2]
[313291358,1707095457747,-500.0,0.00039178,2]
[313291359,1707095457757,-623.3,0.00039178,2]
[313291360,1707095457767,-500.0,0.00039178,2]
[313291361,1707095457776,-500.0,0.00039178,2]
[313291362,1707095457786,-500.0,0.00039178,2]
[313291363,1707095457795,-500.0,0.00039178,2]
[313291364,1707095457804,-500.0,0.00039178,2]
[313291365,1707095457814,-3906.28,0.00039178,2]
[313291366,1707095457823,-500.0,0.00039178,2]
[313291367,1707095457832,-500.0,0.00039178,2]
[313291368,1707095457841,-304.22029535,0.00039178,2]
[313291369,1707095457850,-560.948537,0.00039178,2]
[313291370,1707095457859,-500.0,0.00039178,2]
[313291371,1707095457868,-500.0,0.00039178,2]
[313291372,1707095457877,-500.0,0.00039178,2]
[313291373,1707095457886,-532.85292149,0.00039178,2]
[313291374,1707095457895,-500.0,0.00039178,2]
[313291375,1707095457904,-521.68386591,0.00039178,2]
[313291376,1707095457913,-500.0,0.00039178,2]
[313291377,1707095457922,-187.80324114,0.00039178,2]
[313291378,1707095457931,-500.0,0.00039178,2]
[313291379,1707095457943,-500.0,0.00039178,2]
[313291380,1707095457952,-196.2231047,0.00039178,2]
[313291381,1707095457961,-500.0,0.00039178,2]
[313291382,1707095457969,-500.0,0.00039178,2]
[313291383,1707095457979,-3442.61,0.00039178,2]
[313291384,1707095457988,-500.0,0.00039178,2]
[313291385,1707095457997,-352.34274393,0.00039178,2]
[313291386,1707095458006,-535.18926694,0.00039178,2]
[313291387,1707095458015,-549.94920473,0.00039178,2]
[313291388,1707095458024,-500.0,0.00039178,2]
[313291389,1707095458033,-500.0,0.00039178,2]
[313291390,1707095458042,-500.0,0.00039178,2]
[313291391,1707095458052,-500.0,0.00039178,2]
[313291392,1707095458062,-500.0,0.00039178,2]
[313291393,1707095458072,-500.0,0.00039178,2]
[313291394,1707095458084,-500.0,0.00039178,2]
[313291395,1707095458093,-500.0,0.00039178,2]
[313291396,1707095458102,-563.47396082,0.00039178,2]
[313291397,1707095458112,-500.0,0.00039178,2]
[313291398,1707095458121,-579.76302336,0.00039178,2]
[313291399,1707095458131,-500.0,0.00039178,2]
[313291400,1707095458140,-534.79177817,0.00039178,2]
[313291401,1707095458149,-500.0,0.00039178,2]
[313291402,1707095458160,-500.0,0.00039178,2]
[313291403,1707095458169,-500.0,0.00039178,2]
[313291404,1707095458178,-500.0,0.00039178,2]
[313291405,1707095458188,-500.0,0.00039178,2]
[313291406,1707095458198,-1766.17,0.00039178,5]
[313291407,1707095458207,-500.0,0.00039178,2]
[313291408,1707095458216,-500.0,0.00039178,2]
[313291409,1707095458225,-500.0,0.00039178,2]
[313291410,1707095458234,-717.49,0.00039178,2]
[313291411,1707095458243,-500.0,0.00039178,2]
[313291412,1707095458253,-500.0,0.00039178,2]
[313291413,1707095458262,-500.0,0.00039178,2]
[313291414,1707095458272,-2896.55,0.00039178,2]
[313291415,1707095458281,-500.0,0.00039178,2]
[313291416,1707095458290,-500.0,0.00039178,2]
[313291417,1707095458300,-500.0,0.00039178,2]
[313291418,1707095458309,-500.0,0.00039178,2]
[313291419,1707095458319,-500.0,0.00039178,2]
[313291420,1707095458328,-1943.62,0.00039178,2]
[313291421,1707095458337,-546.1094407,0.00039178,2]
[313291422,1707095458346,-500.0,0.00039178,2]
[313291423,1707095458355,-208.41935013,0.00039178,2]
[313291424,1707095458365,-500.0,0.00039178,2]
[313291425,1707095458374,-882.82,0.00039178,2]
[313291426,1707095458384,-500.0,0.00039178,2]
[313291427,1707095458393,-500.0,0.00039178,2]
[313291428,1707095458403,-558.59461645,0.00039178,2]
[313291429,1707095458412,-500.0,0.00039178,2]
[313291430,1707095458421,-500.0,0.00039178,2]
[313291431,1707095458431,-500.0,0.00039178,2]
[313291432,1707095458442,-500.0,0.00039178,2]
[313291433,1707095458451,-500.0,0.00039178,2]
[313291434,1707095458461,-588.65348,0.00039178,2]
[313291435,1707095458470,-500.0,0.00039178,2]
[313291436,1707095458480,-500.0,0.00039178,2]
[313291437,1707095458489,-500.0,0.00039178,2]
[313291438,1707095458499,-500.0,0.00039178,2]
[313291439,1707095458508,-340.28948766,0.00039178,2]
[313291440,1707095458518,-500.0,0.00039178,2]
[313291441,1707095458527,-500.0,0.00039178,2]
[313291442,1707095458537,-500.0,0.00039178,2]
[313291443,1707095458546,-500.0,0.00039178,2]
[313291444,1707095458556,-500.0,0.00039178,2]
[313291445,1707095458565,-500.0,0.00039178,2]
[313291446,1707095458575,-500.0,0.00039178,2]
[313291447,1707095458584,-500.0,0.00039178,2]
[313291448,1707095458596,-500.0,0.00039178,2]
[313291449,1707095458606,-500.0,0.00039178,2]
[313291450,1707095458615,-633.54,0.00039178,2]
[313291451,1707095458625,-2280.46,0.00039178,2]
[313291452,1707095458634,-666.48,0.00039178,2]
[313291453,1707095458644,-1000.0,0.00039178,7]
[313291454,1707095458653,-500.0,0.00039178,2]
[313291455,1707095458662,-500.0,0.00039178,2]
[313291456,1707095458672,-787.28,0.00039178,2]
[313291457,1707095458681,-500.0,0.00039178,2]
[313291458,1707095458692,-1000.0,0.00039178,7]
[313291459,1707095458701,-500.0,0.00039178,2]
[313291460,1707095458710,-500.0,0.00039178,2]
[313291461,1707095458719,-500.0,0.00039178,2]
[313291462,1707095458729,-500.0,0.00039178,2]
[313291463,1707095458738,-500.0,0.00039178,2]
[313291464,1707095458748,-500.0,0.00039178,2]
[313291465,1707095458758,-500.0,0.00039178,2]
[313291466,1707095458767,-500.0,0.00039178,2]
[313291467,1707095458776,-500.0,0.00039178,2]
[313291468,1707095458786,-594.12446196,0.00039178,2]
[313291469,1707095458795,-500.0,0.00039178,2]
[313291470,1707095458804,-500.0,0.00039178,2]
[313291471,1707095458813,-500.0,0.00039178,2]
[313291472,1707095458823,-500.0,0.00039178,2]
[313291473,1707095458831,-500.0,0.00039178,2]
[313291474,1707095458841,-500.0,0.00039178,2]
[313291475,1707095458850,-189.64553644,0.00039178,2]
[313291476,1707095458859,-500.0,0.00039178,2]
[313291477,1707095458868,-500.0,0.00039178,2]
[313291478,1707095458877,-500.0,0.00039178,2]
[313291479,1707095458886,-500.0,0.00039178,2]
[313291480,1707095458896,-500.0,0.00039178,2]
[313291481,1707095458905,-500.0,0.00039178,2]
[313291482,1707095458915,-500.0,0.00039178,2]
[313291483,1707095458924,-500.0,0.00039178,2]
[313291484,1707095458933,-500.0,0.00039178,2]
[313291485,1707095458944,-500.0,0.00039178,2]
[313291486,1707095458953,-500.0,0.00039178,2]
[313291487,1707095458962,-500.0,0.00039178,2]
[313291488,1707095458971,-1162.55,0.00039178,2]
[313291489,1707095458980,-500.0,0.00039178,2]
[313291490,1707095458990,-2177.23,0.00039178,5]
[313291491,1707095458999,-500.0,0.00039178,2]
[313291492,1707095459008,-500.0,0.00039178,2]
[313291493,1707095459019,-500.0,0.00039178,2]
[313291494,1707095459137,-588.48341566,0.00039178,2]
[313291495,1707095459147,-500.0,0.00039178,2]
[313291496,1707095459158,-598.05,0.00039178,2]
[313291497,1707095459167,-500.0,0.00039178,2]
[313291498,1707095459177,-530.95850559,0.00039178,2]
[313291499,1707095459186,-646.09306548,0.00039178,2]
[313291500,1707095459195,-500.0,0.00039178,2]
[313291501,1707095459204,-643.7126485,0.00039178,2]
[313291502,1707095459215,-500.0,0.00039178,2]
[313291503,1707095459224,-500.0,0.00039178,2]
[313291504,1707095459233,-539.65006108,0.00039178,2]
[313291505,1707095459244,-500.97,0.00039178,2]
[313291506,1707095459253,-287.87926756,0.00039178,2]
[313291507,1707095459263,-500.0,0.00039178,2]
[313291508,1707095459272,-500.0,0.00039178,2]
[313291509,1707095459282,-500.0,0.00039178,2]
[313291510,1707095459291,-633.60180753,0.00039178,2]
[313291511,1707095459300,-500.66052581,0.00039178,2]
[313291512,1707095459310,-500.0,0.00039178,2]
[313291513,1707095459319,-500.0,0.00039178,2]
[313291514,1707095459329,-500.0,0.00039178,2]
[313291515,1707095459339,-500.0,0.00039178,2]
[313291516,1707095459348,-159.27665672,0.00039178,2]
[313291517,1707095459357,-500.0,0.00039178,2]
[313291518,1707095459367,-500.0,0.00039178,2]
[313291519,1707095459377,-500.0,0.00039178,2]
[313291520,1707095459386,-500.0,0.00039178,2]
[313291521,1707095459396,-500.0,0.00039178,2]
[313291522,1707095459405,-500.0,0.00039178,2]
[313291523,1707095459415,-427.60504729,0.00039178,2]
[313291524,1707095459424,-500.0,0.00039178,2]
[313291525,1707095459434,-500.0,0.00039178,2]
[313291526,1707095459444,-612.93781312,0.00039178,2]
[313291527,1707095459453,-500.0,0.00039178,2]
[313291528,1707095459463,-776.5,0.00039178,2]
[313291529,1707095459473,-500.0,0.00039178,2]
[313291530,1707095459483,-329.69893609,0.00039178,2]
[313291531,1707095459493,-578.57719333,0.00039178,2]
[313291532,1707095459502,-500.0,0.00039178,2]
[313291533,1707095459511,-500.0,0.00039178,2]
[313291534,1707095459521,-500.42548749,0.00039178,2]
[313291535,1707095459530,-611.01675286,0.00039178,2]
[313291536,1707095459540,-500.0,0.00039178,2]
[313291537,1707095459550,-500.0,0.00039178,2]
[313291538,1707095459559,-573.72826143,0.00039178,2]
[313291539,1707095459569,-500.0,0.00039178,2]
[313291540,1707095459577,-500.0,0.00039178,2]
[313291541,1707095459587,-500.0,0.00039178,2]
[313291542,1707095459597,-171.0205,0.00039198,14]
[313291543,1707095459606,-263.98004912,0.00039335,31]
[313291544,1707095459616,-150.0,0.00039366,2]
[313291545,1707095459625,-171.0205,0.00039498,16]
[313291546,1707095459635,-5411.91,0.000395,30]
[313291547,1707095459644,-1391.85876225,0.00039661,2]
[313291548,1707095459653,-1000.0,0.000397,2]
[313291549,1707095459663,-500.0,0.000397,2]
[313291550,1707095459672,-1817.5,0.0003977,5]
[313291551,1707095459681,-1984.34151878,0.00039874,11]
[313291552,1707095459692,-1785.23,0.00039878,5]
[313291553,1707095459701,-1809.77,0.0003989,5]
[313291554,1707095459710,-207.94061602,0.00039898,4]
[313291555,1707095459719,-1801.74,0.00039899,5]
[313291556,1707095459728,-1811.01,0.0003997,5]
[313291557,1707095459737,-546.22195111,0.00039977,2]
[313291558,1707095459746,-583.66541534,0.00039977,4]
[313291559,1707095459755,-2021.638,0.00039978,4]
[313291560,1707095459765,-199.25645533,0.00039978,4]
[313291561,1707095459774,-435.37217438,0.0003998,5]
[313291562,1707095459783,-4390.00732164,0.0004,4]
[313291563,1707095459792,-22117.68647422,0.0004,4]
[313291564,1707095459801,-571.36387681,0.0004,4]
[313291565,1707095459810,-155.0,0.0004,2]
[313291566,1707095459819,-83704.56321334,0.0004,4]
[313291567,1707095459828,-2279.09360945,0.0004,4]
[313291568,1707095459837,-54488.91732862,0.0004,4]
[313291569,1707095459846,-1088.67175974,0.0004,4]
[313291570,1707095459855,-622.5463509,0.0004,2]
[313291571,1707095459864,-3477.3967,0.0004,120]
[313291572,1707095459873,-390986.30395566,0.0004,7]
[313291573,1707095459882,-278.72660999,0.0004,6]
[313291574,1707095459891,-255.0,0.0004,12]
[313291575,1707095459900,-255.0,0.0004,12]
[313291576,1707095459909,-500.0,0.0004,2]
[313291577,1707095459918,-532.03485778,0.0004,2]
[313291578,1707095459927,-500.0,0.0004,2]
[313291579,1707095459937,-1031.1,0.0004,7]
[313291580,1707095459946,-509.79581433,0.0004,2]
[313291581,1707095459955,-500.0,0.0004,2]
[313291582,1707095459963,-500.0,0.0004,2]
[313291583,1707095459973,-500.0,0.0004,2]
[313291584,1707095459981,-184.37709703,0.0004,2]
[313291585,1707095459990,-500.0,0.0004,2]
[313291586,1707095459999,-255.0,0.0004,12]
[313291587,1707095460008,-155.3914179,0.0004,2]
[313291588,1707095460017,-500.0,0.0004,2]
[313291589,1707095460026,-500.0,0.0004,2]
[313291590,1707095460035,-500.0,0.0004,2]
[313291591,1707095460044,-500.0,0.0004,2]
[313291592,1707095460054,-553.67,0.0004,2]
[313291593,1707095460063,-500.0,0.0004,2]
[313291594,1707095460074,-500.0,0.0004,2]
[313291595,1707095460084,-532.11471627,0.0004,2]
[313291596,1707095460093,-500.0,0.0004,2]
[313291597,1707095460102,-500.0,0.0004,2]
[313291598,1707095460111,-500.0,0.0004,2]
[313291599,1707095460122,-500.0,0.0004,2]